bitfinex/quotes_ETHUSD_20250319
["timestamp","ask_amount","ask_price","bid_price","bid_amount"]
[1742402896724,4.88128,2048.7,2048.3,10.9420552]
[1742402897039,10.56658,2048.8,2048.4,4.88185]
[1742402897224,4.88092,2048.8,2048.4,7.03273152]
[1742402897425,4.88092,2048.8,2048.5,4.88152]
[1742402898038,0.8046,2049.0,2048.5,4.8815]
[1742402898250,4.88075,2048.9,2048.6,0.791]
[1742402898454,5.68504,2049.0,2048.6,5.67215]
[1742402898626,4.88027,2049.1,2048.7,4.88097]
[1742402899156,0.7814,2049.2,2048.8,4.88069]
[1742402899359,12.75987,2049.3,2048.9,4.88057]
[1742402899668,4.87992,2049.3,2048.9,4.88052]
[1742402899884,4.87992,2049.3,2049.0,4.88042]
[1742402900167,4.8795,2049.4,2049.1,0.976094]
[1742402900358,9.75916,2049.4,2049.1,0.976094]
[1742402900764,4.8795,2049.4,2049.1,0.976094]
[1742402900965,4.8795,2049.4,2048.8,6.0599952]
[1742402900966,4.88005,2049.2,2048.8,10.9407852]
[1742402901171,4.4690677,2049.2,2048.8,6.0599952]
[1742402901336,4.88019,2049.1,2048.8,10.9559952]
[1742402902272,15.0172377,2049.2,2048.8,10.9559952]
[1742402902474,5.66802,2049.2,2048.8,17.58059814]
[1742402902765,4.88012,2049.2,2048.8,22.46132814]
[1742402902967,4.87975,2049.3,2048.9,4.88056]
[1742402903367,4.88011,2049.2,2048.8,17.58074814]
[1742402903548,4.88011,2049.2,2048.9,4.88059]
[1742402903733,4.87979,2049.3,2048.9,11.54686906]
[1742402903935,4.87979,2049.3,2048.9,11.54676906]
[1742402904133,4.87958,2049.4,2049.0,4.88032]
[1742402904378,4.87958,2049.4,2049.0,4.88029]
[1742402904538,5.67135,2049.5,2049.0,4.88029]
[1742402904738,9.75924,2049.4,2049.0,5.66260415]
[1742402904939,4.88004,2049.2,2049.0,0.78231415]
[1742402905171,4.88004,2049.2,2048.9,1.78577906]
[1742402905374,4.88004,2049.2,2048.9,6.66640906]
[1742402905579,4.4690677,2049.4,2048.8,10.9559952]
[1742402905888,4.88066,2048.9,2048.8,10.9549952]
[1742402906778,4.8813,2048.7,2048.5,10.9549952]
[1742402906935,4.88128,2048.7,2048.5,10.9549952]
[1742402907147,4.88055,2049.0,2048.6,4.88137]
[1742402907341,4.87996,2049.2,2048.8,4.88079]
[1742402907586,4.88022,2049.1,2048.8,4.88079]
[1742402908283,4.88022,2049.1,2048.7,11.7519652]
[1742402908675,4.88022,2049.1,2048.7,16.6329352]
[1742402908962,4.88022,2049.1,2048.8,4.88087]
[1742402909276,4.88022,2049.1,2048.7,6.0599952]
[1742402909277,4.88059,2049.0,2048.7,6.0599952]
[1742402909452,4.88083,2048.9,2048.7,6.0599952]
[1742402909680,9.76172,2048.9,2048.7,6.0599952]
[1742402909984,4.8809,2048.8,2048.7,6.0599952]
[1742402912251,4.88123,2048.7,2048.4,4.895]
[1742402912988,4.88142,2048.6,2048.4,4.895]
[1742402913183,4.88093,2048.8,2048.4,16.29516648]
[1742402913430,4.88067,2048.9,2048.5,4.88152]
[1742402913590,9.76152,2048.9,2048.5,4.88152]
[1742402913762,4.88091,2048.8,2048.5,4.88152]
[1742402914168,4.88075,2048.9,2048.5,4.88146]
[1742402914355,9.76158,2048.9,2048.5,4.88146]
[1742402914556,4.88075,2048.9,2048.5,4.88146]
[1742402914964,4.88045,2049.0,2048.6,4.88114]
[1742402915300,4.88027,2049.1,2048.8,4.88079]
[1742402915592,4.88027,2049.1,2048.8,4.895]
[1742402915794,4.8805,2049.0,2048.8,4.895]
[1742402915981,4.88066,2048.9,2048.8,4.895]
[1742402916555,4.8805,2049.0,2048.8,4.895]
[1742402917212,4.88066,2048.9,2048.8,4.895]
[1742402917372,4.88111,2048.8,2048.5,5.6547]
[1742402917763,4.8813,2048.7,2048.5,0.7597]
[1742402918003,4.8813,2048.7,2048.4,9.77675]
[1742402918203,4.8809,2048.8,2048.4,9.77675]
[1742402918365,4.88117,2048.7,2048.4,9.77673]
[1742402918566,4.88146,2048.6,2048.4,4.895]
[1742402919007,4.88121,2048.7,2048.4,4.895]
[1742402919369,4.88121,2048.7,2048.4,9.77684]
[1742402919570,4.88138,2048.6,2048.4,4.895]
[1742402919799,9.76294,2048.6,2048.4,4.895]
[1742402920104,4.88162,2048.5,2048.3,6.0599952]
[1742402920304,4.88146,2048.6,2048.3,6.0599952]
[1742402920480,9.76303,2048.6,2048.3,6.0599952]
[1742402920683,4.88146,2048.6,2048.3,6.0599952]
[1742402921522,4.88165,2048.5,2048.3,6.0599952]
[1742402922111,4.88146,2048.6,2048.3,6.0599952]
[1742402922491,4.88172,2048.5,2048.3,6.0599952]
[1742402922699,9.76303,2048.6,2048.3,6.0599952]
[1742402923713,9.76304,2048.6,2048.3,6.0599952]
[1742402923915,9.76304,2048.6,2048.2,15.8371552]
[1742402924215,4.88164,2048.5,2048.2,16.8255415]
[1742402924411,4.4690677,2048.7,2048.2,11.9433815]
[1742402924614,4.88174,2048.5,2048.2,11.9433815]
[1742402924816,0.8165,2048.4,2048.2,7.0483815]
[1742402925116,0.93057654,2048.7,2048.4,4.88175]
[1742402925311,5.69753,2048.8,2048.4,4.8817]
[1742402925621,4.88103,2048.8,2048.4,4.8817]
[1742402925775,9.7621,2048.8,2048.4,4.8817]
[1742402925980,9.76211,2048.8,2048.4,4.8817]
[1742402926289,4.88074,2048.9,2048.6,4.88128]
[1742402926490,4.88074,2048.9,2048.5,4.88152]
[1742402926890,4.88074,2048.9,2048.5,4.8815]
[1742402927188,9.7616,2048.9,2048.5,4.8815]
[1742402927517,4.88074,2048.9,2048.5,4.8815]
[1742402927718,9.76157,2048.9,2048.5,4.8815]
[1742402928013,4.88074,2048.9,2048.5,12.4886692]
[1742402928183,4.88074,2048.9,2048.6,5.65659]
[1742402928383,4.88046,2049.0,2048.6,5.65651]
[1742402928584,9.76107,2049.0,2048.6,5.65651]
[1742402928783,4.88068,2048.9,2048.6,5.65651]
[1742402929014,4.88068,2048.9,2048.6,0.7753]
[1742402929321,4.88068,2048.9,2048.6,5.65664]
[1742402929524,4.88074,2048.9,2048.6,5.65664]
[1742402930221,9.76113,2049.0,2048.6,5.65651]
[1742402930520,4.8805,2049.0,2048.6,10.53777]
[1742402930683,4.88005,2049.2,2048.7,4.88114]
[1742402931026,4.88005,2049.2,2048.8,9.77581]
[1742402931027,9.76018,2049.2,2048.8,9.77581]
[1742402931206,9.76016,2049.2,2048.8,9.77581]
[1742402931404,4.88005,2049.2,2048.8,9.77581]
[1742402931919,9.75927,2049.4,2049.0,5.6475]
[1742402932118,4.87959,2049.4,2049.0,5.6475]
[1742402932322,4.87959,2049.4,2049.0,10.52774]
[1742402932525,4.87959,2049.4,2049.0,5.6475]
[1742402932726,4.87959,2049.4,2049.1,4.88008]
[1742402933031,3.74919605,2049.8,2049.3,4.87952]
[1742402933032,5.65574,2049.8,2049.3,4.87952]
[1742402933325,9.75688,2049.9,2049.5,4.8791]
[1742402933524,4.87855,2049.8,2049.5,4.8791]
[1742402933725,4.87855,2049.8,2049.4,5.64046]
[1742402933891,4.87885,2049.7,2049.4,0.7612]
[1742402934092,9.75723,2049.8,2049.4,5.64053]
[1742402934396,4.87853,2049.8,2049.4,7.78794252]
[1742402934596,4.87894,2049.7,2049.4,2.90861252]
[1742402934996,4.87901,2049.6,2049.4,2.90861252]
[1742402935191,4.87894,2049.7,2049.4,2.90861252]
[1742402935393,9.75789,2049.7,2049.4,0.7612]
[1742402935608,4.87894,2049.7,2049.4,0.7612]
[1742402935958,9.3476077,2049.8,2049.4,0.7612]
[1742402935959,4.87854,2049.8,2049.4,5.64057]
[1742402936115,4.87854,2049.8,2049.4,5.64051]
[1742402936432,4.87854,2049.8,2049.4,10.51985]
[1742402936630,4.87854,2049.8,2049.5,4.87915]
[1742402936829,4.87854,2049.8,2049.4,7.78798452]
[1742402937045,4.87854,2049.8,2049.4,7.78792452]
[1742402937233,4.87854,2049.8,2049.4,12.66726452]
[1742402937527,4.03152079,2049.9,2049.4,7.78797452]
[1742402937690,4.87862,2049.8,2049.5,4.87918]
[1742402937894,4.87829,2049.9,2049.5,6.75189497]
[1742402938206,4.87811,2050.0,2049.6,4.87888]
[1742402938403,4.87811,2050.0,2049.6,9.77188]
[1742402938649,4.87811,2050.0,2049.6,15.8318752]
[1742402938989,8.90963079,2050.0,2049.6,15.8318752]
[1742402939130,4.8784,2049.9,2049.6,13.28749622]
[1742402939334,8.91021079,2049.8,2049.6,10.9529952]
[1742402939949,4.87876,2049.7,2049.6,6.0599952]
[1742402940868,4.87876,2049.7,2049.0,0.8268]
[1742402940869,4.88019,2049.1,2049.0,0.8268]
[1742402941036,8.91171079,2049.1,2048.8,0.8268]
[1742402941370,8.91171079,2049.1,2048.8,7.37377352]
[1742402941371,4.03152079,2049.1,2048.8,7.37377352]
[1742402941732,8.91183079,2049.1,2048.8,2.49287352]
[1742402941948,9.76111,2049.0,2048.7,6.0599952]
[1742402942165,4.03152079,2049.1,2048.7,6.0599952]
[1742402942379,13.79225079,2049.1,2048.7,10.9409352]
[1742402942530,8.91188079,2049.1,2048.8,4.88086]
[1742402942866,4.88051,2049.0,2048.7,10.9411252]
[1742402943159,9.76075,2049.1,2048.7,10.9411252]
[1742402943362,4.88036,2049.1,2048.7,15.8221252]
[1742402943525,4.88036,2049.1,2048.8,4.88087]
[1742402943729,5.70066,2049.5,2048.9,0.7783]
[1742402944065,4.87958,2049.4,2049.0,9.77329]
[1742402944437,9.34904826,2049.3,2049.0,4.893]
[1742402944632,4.87996,2049.2,2049.0,4.893]
[1742402945229,4.8795,2049.4,2049.0,9.77331]
[1742402945429,2.46591283,2049.6,2049.0,9.77331]
[1742402945430,10.86854,2049.8,2049.3,4.87962]
[1742402945625,4.87888,2049.7,2049.3,4.87962]
[1742402946075,9.75783,2049.7,2049.3,4.87962]
[1742402946257,4.87852,2049.8,2049.4,4.8793]
[1742402946635,4.87913,2049.6,2049.3,1.66446652]
[1742402946939,9.75832,2049.6,2049.2,10.9398652]
[1742402947145,4.87934,2049.5,2049.2,6.0599952]
[1742402947546,4.87956,2049.4,2049.2,6.0599952]
[1742402948134,5.65134,2049.5,2049.2,6.0599952]
[1742402949776,4.87924,2049.5,2049.2,6.0599952]
[1742402949975,4.87924,2049.5,2049.2,10.9399252]
[1742402950175,4.87903,2049.6,2049.2,13.5311966]
[1742402950351,5.66068,2049.9,2049.5,5.63431]
[1742402950538,4.87838,2049.9,2049.5,5.63431]
[1742402950740,4.87806,2050.0,2049.6,4.87879]
[1742402950940,4.87829,2049.9,2049.6,6.419311]
[1742402951658,9.75675,2049.9,2049.6,1.540521]
[1742402951858,4.87865,2049.8,2049.5,0.7552]
[1742402952265,4.87877,2049.7,2049.4,4.892]
[1742402952460,4.87908,2049.6,2049.4,4.892]
[1742402953171,4.87923,2049.5,2049.4,4.892]
[1742402953562,4.87923,2049.5,2049.3,6.0599952]
[1742402953759,5.22252826,2049.4,2048.7,6.06]
[1742402953958,4.88078,2048.9,2048.5,0.8161]
[1742402954162,4.46912826,2049.2,2048.5,0.8161]
[1742402954163,4.88094,2048.8,2048.5,0.8161]
[1742402954419,4.88022,2049.1,2048.5,0.8161]
[1742402954420,4.88125,2048.7,2048.5,0.8161]
[1742402954565,5.6951174,2048.9,2048.3,0.8161]
[1742402954918,4.88116,2048.7,2048.3,0.8161]
[1742402955061,4.88148,2048.6,2048.3,0.8161]
[1742402955266,4.88173,2048.5,2048.1,21.53306]
[1742402955459,4.88173,2048.5,2048.1,16.64106]
[1742402955713,4.88144,2048.6,2048.2,9.76444]
[1742402955922,4.88116,2048.7,2048.3,6.546064]
[1742402956224,4.88116,2048.7,2048.3,6.545974]
[1742402956421,0.7534,2048.9,2048.4,4.88175]
[1742402956721,4.88044,2049.0,2048.5,0.7533]
[1742402956919,4.88027,2049.1,2048.6,4.88138]
[1742402957063,4.87996,2049.2,2048.8,4.88088]
[1742402957398,4.88038,2049.1,2048.7,0.563468]
[1742402957561,4.88053,2049.0,2048.7,0.563468]
[1742402957757,4.8802,2049.1,2048.7,5.444418]
[1742402959971,5.23332826,2049.3,2048.8,4.88086]
[1742402960190,4.8802,2049.1,2048.8,4.88086]
[1742402960383,4.8802,2049.1,2048.7,5.444418]
[1742402960783,4.88045,2049.0,2048.7,5.444418]
[1742402960983,4.8802,2049.1,2048.7,5.444418]
[1742402960984,4.88026,2049.1,2048.7,5.444418]
[1742402961183,9.76063,2049.1,2048.7,4.88095]
[1742402961471,4.88045,2049.0,2048.7,4.88095]
[1742402961894,9.76063,2049.1,2048.7,4.88095]
[1742402962096,9.76058,2049.1,2048.7,4.88095]
[1742402962509,4.8805,2049.0,2048.7,4.88095]
[1742402963405,4.88026,2049.1,2048.7,9.76191]
[1742402963608,4.87973,2049.3,2048.9,5.69366]
[1742402963805,4.8794,2049.5,2049.1,4.88008]
[1742402964102,4.8795,2049.4,2049.0,9.76064]
[1742402964284,4.8795,2049.4,2049.0,4.8803]
[1742402964608,4.8795,2049.4,2048.9,1.18777809]
[1742402964609,4.87975,2049.3,2048.9,1.18777809]
[1742402964796,4.8795,2049.4,2049.0,4.88036]
[1742402965209,4.8795,2049.4,2048.9,6.79161241]
[1742402965210,4.87986,2049.3,2048.9,1.18777809]
[1742402965503,4.8801,2049.2,2048.9,1.18777809]
[1742402965910,4.8801,2049.2,2048.9,6.06834809]
[1742402966207,4.8801,2049.2,2048.9,1.18777809]
[1742402966397,0.48801,2049.1,2048.7,10.53666]
[1742402966705,4.88033,2049.1,2048.7,10.53659]
[1742402966909,4.88033,2049.1,2048.7,15.41763]
[1742402967110,4.88033,2049.1,2048.7,10.53659]
[1742402967286,4.88033,2049.1,2048.7,15.41762]
[1742402967487,4.88033,2049.1,2048.7,10.53659]
[1742402968490,4.88033,2049.1,2048.7,15.4176]
[1742402968813,0.976028,2049.0,2048.4,0.8308]
[1742402968974,4.88099,2048.8,2048.5,4.893]
[1742402969311,4.88074,2048.9,2048.5,9.77449]
[1742402969512,4.88074,2048.9,2048.5,14.65596]
[1742402969702,4.88074,2048.9,2048.5,9.77447]
[1742402970082,4.88091,2048.8,2048.5,9.77447]
[1742402970611,4.88074,2048.9,2048.5,9.77447]
[1742402971181,4.88116,2048.7,2048.4,4.88182]
[1742402971686,4.88116,2048.7,2048.3,15.82407]
[1742402971890,4.8818,2048.5,2048.3,6.06]
[1742402972120,4.88145,2048.6,2048.2,4.88224]
[1742402972280,9.76306,2048.6,2048.2,4.88224]
[1742402972890,4.88145,2048.6,2048.2,9.76439]
[1742402973091,4.88123,2048.7,2048.3,4.88208]
[1742402973414,4.88123,2048.7,2048.3,4.88196]
[1742402973618,8.89215909,2048.9,2048.2,4.88224]
[1742402973805,4.88168,2048.5,2048.1,10.58204]
[1742402974010,4.8821,2048.3,2048.1,6.06701507]
[1742402974204,4.88194,2048.4,2048.1,6.06701507]
[1742402974412,10.28600909,2048.5,2048.1,6.06701507]
[1742402974413,4.88166,2048.5,2048.1,10.94935507]
[1742402974616,9.76346,2048.5,2048.1,10.94935507]
[1742402974790,4.88187,2048.4,2048.1,6.06701507]
[1742402975390,8.91879385,2048.5,2048.1,6.06701507]
[1742402975591,13.80060385,2048.5,2048.1,10.94943507]
[1742402975791,15.25630423,2048.5,2048.1,10.94943507]
[1742402976218,4.88187,2048.4,2048.1,6.06701507]
[1742402976524,4.88233,2048.2,2048.0,6.06]
[1742402976701,4.88296,2048.0,2047.5,6.8617]
[1742402976883,4.03713385,2047.8,2047.6,4.88376]
[1742402977221,8.91954385,2048.2,2047.8,4.88327]
[1742402977419,10.37752023,2048.2,2047.8,4.88327]
[1742402977789,4.03713385,2048.0,2047.6,4.8837]
[1742402977989,8.92048385,2047.8,2047.5,6.8617]
[1742402978215,4.03713385,2047.8,2047.5,0.8017]
[1742402978389,4.03713385,2047.8,2047.5,5.68562]
[1742402978910,4.03713385,2047.8,2047.5,5.68561]
[1742402979110,4.03713385,2048.0,2047.7,4.88343]
[1742402979313,4.66699487,2048.0,2047.7,4.88343]
[1742402979520,4.66699487,2048.0,2047.8,4.88328]
[1742402979730,9.77486,2048.4,2047.7,4.88343]
[1742402979731,3.0,2048.4,2048.0,4.88269]
[1742402980022,4.03713385,2048.2,2047.9,5.65784]
[1742402980594,4.03713385,2048.2,2047.9,0.7748]
[1742402980920,4.03713385,2048.2,2047.9,4.88293]
[1742402981110,9.35545994,2048.3,2047.9,4.88293]
[1742402981314,1.94850703,2048.3,2048.0,4.88272]
[1742402981517,3.0,2048.4,2048.1,4.88244]
[1742402981714,3.0,2048.4,2048.0,4.88272]
[1742402982024,11.60273032,2048.5,2048.1,4.88239]
[1742402982225,11.60273032,2048.5,2048.1,9.7648]
[1742402982731,2.24780038,2048.5,2048.3,4.88204]
[1742402982943,1.45570038,2048.5,2048.3,4.88198]
[1742402983423,1.45570038,2048.5,2048.3,9.76394]
[1742402983724,1.45570038,2048.5,2048.3,4.88196]
[1742402985027,0.63371504,2048.4,2048.2,4.88226]
[1742402985189,1.45570038,2048.5,2048.3,4.88207]
[1742402985392,1.45570038,2048.5,2048.3,4.88198]
[1742402985609,5.69602,2048.8,2048.4,9.76336]
[1742402986209,5.69602,2048.8,2048.5,4.8816]
[1742402986734,0.8151,2048.8,2048.5,4.8816]
[1742402987297,0.8151,2048.8,2048.5,4.88149]
[1742402987933,9.76303,2048.6,2048.2,4.88222]
[1742402988104,4.88213,2048.3,2048.1,4.894]
[1742402988434,5.89686693,2048.5,2048.2,4.88231]
[1742402988658,1.42362699,2048.5,2048.2,4.88231]
[1742402988857,1.42362699,2048.5,2048.3,4.88206]
[1742402989062,1.42362699,2048.5,2048.0,0.37021317]
[1742402989261,1.42362699,2048.5,2048.2,4.88222]
[1742402989435,6.30525699,2048.5,2048.2,4.8823]
[1742402989763,1.42362699,2048.5,2048.2,4.8823]
[1742402989963,1.42362699,2048.5,2048.3,4.88201]
[1742402990285,5.67241,2048.8,2048.3,0.8101]
[1742402990561,5.67241,2048.8,2048.4,4.88167]
[1742402990723,3.7915,2048.8,2048.5,4.88157]
[1742402990922,3.0,2048.8,2048.5,4.88157]
[1742402991138,6.49008399,2048.8,2048.6,4.88136]
[1742402991339,3.49008399,2048.8,2048.6,4.88136]
[1742402991538,3.0,2048.9,2048.6,4.88136]
[1742402992061,7.88067,2048.9,2048.6,4.88136]
[1742402992272,8.67198,2049.0,2048.6,4.88136]
[1742402992766,13.55252,2049.0,2048.6,4.88136]
[1742402992973,4.88068,2048.9,2048.5,4.88157]
[1742402993141,0.97659765,2048.8,2048.5,4.88157]
[1742402993341,5.85760765,2048.8,2048.4,4.88175]
[1742402993938,4.8813,2048.7,2048.3,6.06754606]
[1742402994137,4.88139,2048.6,2048.3,4.88207]
[1742402994345,10.18633994,2048.7,2048.3,4.88207]
[1742402994566,1.60438476,2048.6,2048.3,4.88207]
[1742402995133,6.48576476,2048.6,2048.2,5.87675756]
[1742402995446,6.48576476,2048.6,2048.2,5.87666756]
[1742402995656,11.36731476,2048.6,2048.2,5.87666756]
[1742402995832,6.48576476,2048.6,2048.2,5.87662756]
[1742402996032,1.60438476,2048.6,2048.4,4.88185]
[1742402996255,0.7779,2048.9,2048.6,4.88135]
[1742402996474,4.88029,2049.1,2048.7,4.88104]
[1742402996770,4.88029,2049.1,2048.8,4.88089]
[1742402997067,10.13116994,2049.2,2048.8,4.88089]
[1742402997225,6.49244699,2049.1,2048.7,4.88101]
[1742402997431,9.35379994,2049.0,2048.6,4.88129]
[1742402997843,14.23441994,2049.0,2048.6,4.88129]
[1742402998142,9.35379994,2049.0,2048.6,4.88129]
[1742402998991,9.35379994,2049.0,2048.6,9.76251]
[1742402999168,11.01620263,2049.0,2048.6,9.76251]
[1742402999589,11.01620263,2049.0,2048.5,9.7746]
[1742402999753,15.89661263,2049.0,2048.6,4.8813]
[1742402999960,11.01607263,2049.0,2048.6,9.76255]
[1742403000290,1.66240269,2049.0,2048.7,4.88106]
[1742403000600,1.66240269,2049.0,2048.7,9.76206]
[1742403000757,1.66240269,2049.0,2048.7,4.88101]
[1742403000953,1.66240269,2049.0,2048.7,9.76206]
[1742403001149,1.66240269,2049.0,2048.7,4.88101]
[1742403001377,6.54291269,2049.0,2048.6,4.88138]
[1742403001584,5.65094,2048.8,2048.5,4.893]
[1742403002193,5.65094,2048.8,2048.5,9.77455]
[1742403002495,10.53201,2048.8,2048.5,4.893]
[1742403002692,5.65094,2048.8,2048.5,4.893]
[1742403002892,13.79732948,2048.7,2048.3,15.83399]
[1742403003058,10.49460112,2048.7,2048.3,15.83399]
[1742403003256,10.49460112,2048.7,2048.3,6.06]
[1742403003257,8.91648948,2048.5,2048.3,6.06]
[1742403003457,13.79829948,2048.5,2048.3,6.06]
[1742403004008,13.79826948,2048.5,2048.1,4.88247]
[1742403004178,13.79826948,2048.5,2047.9,4.892]
[1742403004179,8.91701948,2048.3,2047.9,4.88301]
[1742403004511,6.36035316,2048.6,2048.0,0.8044]
[1742403004686,3.0,2048.6,2048.3,9.76397]
[1742403005008,4.88149,2048.6,2048.1,4.88257]
[1742403005309,4.03483948,2048.7,2048.4,4.88184]
[1742403005471,4.03483948,2048.7,2048.3,4.882]
[1742403005669,4.88153,2048.6,2048.2,9.77423]
[1742403005914,10.65471695,2048.6,2048.2,4.88222]
[1742403006073,5.77316695,2048.6,2048.2,9.7644]
[1742403006272,10.65477695,2048.6,2048.2,4.88218]
[1742403006586,5.77316695,2048.6,2048.2,9.76441]
[1742403006793,5.77316695,2048.6,2048.3,4.88205]
[1742403006994,4.88113,2048.8,2048.4,4.88168]
[1742403007284,0.756,2048.9,2048.6,4.88118]
[1742403007489,5.70888,2049.1,2048.7,4.88105]
[1742403008315,4.88043,2049.0,2048.7,4.88105]
[1742403008517,4.03483948,2048.8,2048.5,4.88151]
[1742403008675,8.91577948,2048.8,2048.4,4.88177]
[1742403009211,8.91577948,2048.8,2048.4,4.88185]
[1742403009415,8.91577948,2048.8,2048.5,4.88161]
[1742403009718,4.88066,2048.9,2048.5,4.88153]
[1742403010019,15.07019043,2049.0,2048.6,4.88135]
[1742403010174,8.91528948,2049.0,2048.3,5.65317]
[1742403010371,8.91528948,2049.0,2048.6,4.88125]
[1742403010814,8.91528948,2049.0,2048.6,4.88138]
[1742403011011,8.91528948,2049.0,2048.6,4.88122]
[1742403011212,8.91573948,2048.8,2048.5,9.77359]
[1742403011421,4.03483948,2048.8,2048.5,9.77359]
[1742403012223,4.03483948,2048.8,2048.5,14.65505]
[1742403012383,8.91575948,2048.8,2048.5,9.77346]
[1742403012583,4.03483948,2048.8,2048.5,9.77346]
[1742403013115,8.91575948,2048.8,2048.5,9.77346]
[1742403013426,0.7646,2048.7,2048.5,4.892]
[1742403013832,0.7646,2048.7,2048.3,10.54516]
[1742403013833,4.03483948,2048.6,2048.3,10.54516]
[1742403014135,4.03483948,2048.6,2047.9,6.04729646]
[1742403014298,14.60671948,2048.4,2048.0,9.77472]
[1742403014728,9.72468948,2048.4,2048.0,9.77472]
[1742403015242,4.03483948,2048.4,2048.1,4.88248]
[1742403016234,8.91674948,2048.4,2048.0,9.77464]
[1742403016734,4.88164,2048.5,2048.1,4.8824]
[1742403017040,0.8079,2048.6,2048.2,4.88232]
[1742403017238,4.88127,2048.7,2048.3,4.88197]
[1742403017405,4.03483948,2048.6,2048.2,5.67361]
[1742403017600,4.03483948,2048.6,2048.2,4.88231]
[1742403017601,13.79794948,2048.6,2048.2,4.88231]
[1742403017802,8.91635948,2048.6,2048.2,4.88231]
[1742403018125,8.91635948,2048.6,2048.2,4.88217]
[1742403018323,8.91635948,2048.6,2048.2,9.76435]
[1742403019233,8.91635948,2048.6,2048.1,4.88256]
[1742403019537,8.91635948,2048.6,2048.1,4.88243]
[1742403019538,5.71144,2048.5,2048.1,4.88243]
[1742403019730,5.71144,2048.5,2048.2,4.88232]
[1742403020844,0.8082,2048.8,2048.5,4.88153]
[1742403021148,7.88074,2048.9,2048.5,4.88153]
[1742403021544,4.88074,2048.9,2048.5,4.88153]
[1742403021743,4.88074,2048.9,2048.5,4.88147]
[1742403021926,8.91584948,2048.8,2048.4,4.88185]
[1742403022303,4.03483948,2048.6,2048.3,5.67542]
[1742403022520,4.81283948,2048.6,2048.3,4.88202]
[1742403022739,4.81283948,2048.6,2048.3,9.76398]
[1742403022921,4.81283948,2048.6,2048.3,4.88196]
[1742403023122,9.69426948,2048.6,2048.2,10.94226]
[1742403023344,11.15179943,2048.6,2048.2,10.94217]
[1742403023648,5.67243,2048.2,2047.8,10.59822]
[1742403023941,5.67243,2048.2,2047.7,4.88352]
[1742403023942,4.82483948,2048.2,2047.7,4.88352]
[1742403024142,4.88275,2048.1,2047.7,4.88352]
[1742403024346,4.88315,2047.9,2047.6,10.60755]
[1742403024642,4.88366,2047.7,2047.3,10.94437]
[1742403024828,4.03483948,2047.6,2047.3,4.88432]
[1742403025032,4.88366,2047.7,2047.4,4.88422]
[1742403025342,9.70273948,2047.8,2047.5,4.88399]
[1742403025541,4.88314,2047.9,2047.5,9.76784]
[1742403025841,3.0,2048.1,2047.8,4.88325]
[1742403026039,3.0,2048.1,2047.9,4.88302]
[1742403027520,3.0,2048.1,2047.8,4.88328]
[1742403027720,8.91726948,2048.2,2047.8,9.76643]
[1742403027934,8.91726948,2048.2,2047.9,4.88303]
[1742403028120,11.16640443,2048.2,2047.9,4.88303]
[1742403028456,7.83483948,2048.4,2047.6,11.88636991]
[1742403028638,3.8,2048.4,2048.1,4.8824]
[1742403028837,7.09873995,2048.6,2048.2,4.88233]
[1742403029140,4.8817,2048.5,2048.1,4.8825]
[1742403029335,4.8817,2048.5,2048.1,9.76493]
[1742403029542,9.76351,2048.5,2048.1,4.88243]
[1742403029853,4.8827,2048.1,2047.9,6.06]
[1742403030060,8.91737948,2048.2,2047.8,4.88321]
[1742403030844,4.88265,2048.1,2047.7,5.65771]
[1742403032355,0.09276726,2048.0,2047.8,4.88326]
[1742403032555,0.09276726,2048.0,2047.9,4.88305]
[1742403032757,10.57835,2048.3,2047.9,4.88305]
[1742403033051,0.09271305,2048.0,2047.8,4.88316]
[1742403033352,0.09259209,2047.9,2047.8,4.88316]
[1742403033553,0.09259209,2047.9,2047.6,9.77668]
[1742403033728,5.71198,2047.9,2047.5,5.87551039]
[1742403033936,4.97583112,2047.8,2047.4,9.77722]
[1742403034242,5.9585156,2047.7,2047.3,15.47165]
[1742403034557,4.97602418,2047.6,2047.3,10.58724]
[1742403034757,4.97602418,2047.6,2047.2,4.88471]
[1742403034758,9.01086366,2047.6,2047.2,4.88471]
[1742403034924,9.01086366,2047.6,2047.2,14.66131]
[1742403035124,10.50779359,2047.6,2047.2,14.66131]
[1742403035324,10.50779359,2047.6,2047.2,9.76931]
[1742403035951,10.50779359,2047.6,2047.2,4.88455]
[1742403036268,0.09225418,2047.6,2047.3,4.88434]
[1742403036418,0.09225418,2047.6,2047.1,7.00502466]
[1742403036419,0.09225418,2047.6,2047.5,4.884]
[1742403036616,0.7534,2048.1,2047.7,4.88346]
[1742403036857,3.7534,2048.1,2047.6,4.88361]
[1742403037041,8.91783948,2048.0,2047.6,4.88361]
[1742403037250,1.26712395,2047.9,2047.7,4.88348]
[1742403037637,8.63598,2048.1,2047.8,4.88328]
[1742403037834,6.34365895,2048.2,2047.9,4.88304]
[1742403038157,4.46131895,2048.2,2047.9,4.88293]
[1742403038835,1.46131895,2048.2,2047.9,4.88293]
[1742403039019,1.46131895,2048.2,2047.9,9.76586]
[1742403039226,1.46131895,2048.2,2047.9,5.67583]
[1742403039641,1.46131895,2048.2,2047.9,4.88293]
[1742403040161,1.46131895,2048.2,2047.9,9.76587]
[1742403040322,4.88217,2048.3,2048.0,4.8828]
[1742403040530,0.7762,2048.5,2048.2,4.88224]
[1742403041036,26.57220948,2048.7,2048.3,4.882]
[1742403041563,17.6562,2048.7,2048.5,4.88146]
[1742403041729,4.88085,2048.9,2048.5,9.76291]
[1742403041730,5.68715,2048.9,2048.5,9.76291]
[1742403041929,6.475235,2048.9,2048.6,4.88137]
[1742403042124,0.09361731,2048.8,2048.5,4.88143]
[1742403042639,9.00951679,2048.8,2048.4,4.88177]
[1742403042833,9.00951679,2048.8,2048.4,4.88169]
[1742403043057,10.47916547,2048.8,2048.4,9.76342]